[Event "FIDE WCCC G12 2018"]
[Site "Santiago de Compostela"]
[Date "2018.11.12"]
[Round "8"]
[White "Sevcikova, Lucia"]
[Black "Schiopu, Oana-Magdalena"]
[Result "0-1"]
[ECO "E32"]
[WhiteElo "1768"]
[BlackElo "1526"]
[Annotator "NA RC"]
[PlyCount "62"]
[EventDate "2018.11.04"]
[EventType "swiss"]
[EventCountry "ESP"]
[SourceTitle "playchess.com"]
[Source "ChessBase"]
[SourceQuality "1"]
[TimeControl "40/5400+30:1800+30"]

1. d4 {[%emt 0:00:00]} Nf6 {[%emt 0:00:00]} 2. c4 {[%emt 0:00:00]} e6 {[%emt 0:00:00]} 3. Nc3 {[%emt 0:00:00]} Bb4 {[%emt 0:00:22]} 4. Qc2 {[%emt 0:00:18]} O-O {[%emt 0:00:19]} 5. a3 {[%emt 0:00:42]} Bxc3+ {[%emt 0:01:38]} 6. Qxc3 {[%emt 0:00:28]} d5 {[%emt 0:01:01]} 7. Bg5 {[%emt 0:01:12]} dxc4 {[%emt 0:00:57]} 8. Qxc4 {[%emt 0:00:38]} b6 {[%emt 0:00:36]} 9. Nf3 {[%emt 0:03:39]} Ba6 {[%emt 0:05:11]} 10. Qa4 {[%emt 0:03:19]} h6 {[%emt 0:07:36]} 11. Bh4 {[%emt 0:01:49]} Qd7 {[%emt 0:18:53]} 12. Qc2 {[%emt 0:07:34]} Nd5 {[%emt 0:14:08]} 13. Ne5 {[%emt 0:12:37]} Qe8 {[%emt 0:07:03]} 14. e4 {[%emt 0:11:01]} Nf4 {[%emt 0:06:15]} 15. Bg3 {[%emt 0:06:28]} Bxf1 {[%emt 0:04:23]} 16. Bxf4 {[%emt 0:01:26]} Ba6 {[%emt 0:00:21]} 17. a4 {[%emt 0:13:03]} f6 {[%emt 0:04:24]} 18. Nf3 {[%emt 0:03:34]} Qg6 {[%emt 0:00:55]} 19. Bg3 {[%emt 0:03:47]} c5 {[%emt 0:04:12]} 20. dxc5 {[%emt 0:00:30]} Nc6 {[%emt 0:01:05]} 21. Nh4 {[%emt 0:05:04]} Qh7 {[%emt 0:00:40]} 22. Nf3 {[%emt 0:04:49]} Nb4 {[%emt 0:00:46]} 23. Qb1 {[%emt 0:03:20]} Rfd8 {[%emt 0:02:27]} 24. Nd2 {[%emt 0:01:23]} Bd3 {[%emt 0:00:54]} 25. Qc1 {[%emt 0:00:40]} Nc2+ {[%emt 0:00:19]} 26. Kd1 {[%emt 0:00:06]} Nxa1 {[%emt 0:00:23]} 27. Qxa1 {[%emt 0:00:07]} Bxe4 {[%emt 0:00:08]} 28. f3 {[%emt 0:00:29]} Bc2+ {[%emt 0:00:34]} 29. Ke1 {[%emt 0:00:24]} Qd3 {[%emt 0:00:27]} 30. Nf1 {[%emt 0:00:37]} Bd1 {[%emt 0:00:39]} 31. Kf2 {[%emt 0:00:42]} Qd4+ {[%emt 0:00:09]} 0-1

[Event "FIDE WCCC G12 2018"]
[Site "Santiago de Compostela"]
[Date "2018.11.12"]
[Round "8"]
[White "Savitha Shri B"]
[Black "Enkhsaran, Batsaikhan"]
[Result "1-0"]
[ECO "D11"]
[WhiteElo "1745"]
[BlackElo "1614"]
[Annotator "NA RC"]
[PlyCount "93"]
[EventDate "2018.11.04"]
[EventType "swiss"]
[EventCountry "ESP"]
[SourceTitle "playchess.com"]
[Source "ChessBase"]
[SourceQuality "1"]
[TimeControl "40/5400+30:1800+30"]

1. d4 {[%emt 0:00:00]} d5 {[%emt 0:00:00]} 2. c4 {[%emt 0:00:00]} c6 {[%emt 0:00:08]} 3. Nf3 {[%emt 0:00:07]} Nf6 {[%emt 0:00:27]} 4. e3 {[%emt 0:00:06]} e6 {[%emt 0:00:37]} 5. b3 {[%emt 0:00:05]} Nbd7 {[%emt 0:01:07]} 6. Bb2 {[%emt 0:00:08]} Bd6 {[%emt 0:00:56]} 7. Nbd2 {[%emt 0:00:10]} O-O {[%emt 0:01:48]} 8. Qc2 {[%emt 0:00:05]} Qe7 {[%emt 0:03:48]} 9. Ne5 {[%emt 0:00:05]} c5 {[%emt 0:04:30]} 10. Bd3 {[%emt 0:00:54]} h6 {[%emt 0:01:27]} 11. Ndf3 {[%emt 0:02:24]} b6 {[%emt 0:02:58]} 12. O-O {[%emt 0:04:33]} Bb7 {[%emt 0:03:59]} 13. Qe2 {[%emt 0:01:59]} dxc4 {[%emt 0:02:56]} 14. bxc4 {[%emt 0:05:06]} Rac8 {[%emt 0:04:56]} 15. Rfd1 {[%emt 0:05:32]} Rfd8 {[%emt 0:11:31]} 16. Bc2 {[%emt 0:12:20]} a6 {[%emt 0:06:33]} 17. Nxd7 {[%emt 0:03:04]} Nxd7 {[%emt 0:10:29]} 18. d5 {[%emt 0:02:08]} e5 {[%emt 0:05:07]} 19. e4 {[%emt 0:01:45]} Nf8 {[%emt 0:00:52]} 20. Bc1 {[%emt 0:05:35]} Rb8 {[%emt 0:00:53]} 21. a4 {[%emt 0:01:49]} Bc8 {[%emt 0:01:33]} 22. Ne1 {[%emt 0:02:36]} Bd7 {[%emt 0:02:29]} 23. Bd3 {[%emt 0:04:03]} Ng6 {[%emt 0:01:49]} 24. Bd2 {[%emt 0:02:45]} Qe8 {[%emt 0:01:40]} 25. Bc2 {[%emt 0:03:52]} b5 {[%emt 0:01:01]} 26. axb5 {[%emt 0:01:38]} axb5 {[%emt 0:00:20]} 27. cxb5 {[%emt 0:01:20]} Bxb5 {[%emt 0:00:30]} 28. Qf3 {[%emt 0:01:47]} Rdc8 {[%emt 0:04:10]} 29. g3 {[%emt 0:03:00]} Qe7 {[%emt 0:04:34]} 30. Ng2 {[%emt 0:01:32]} Ra8 {[%emt 0:04:51]} 31. Ne3 {[%emt 0:00:33]} Qc7 {[%emt 0:03:40]} 32. Nf5 {[%emt 0:00:29]} Bf8 {[%emt 0:01:49]} 33. h4 {[%emt 0:00:55]} Rxa1 {[%emt 0:02:47]} 34. Rxa1 {[%emt 0:00:03]} Qd7 {[%emt 0:02:16]} 35. Qg4 {[%emt 0:02:08]} Kh8 {[%emt 0:02:03]} 36. Bc3 {[%emt 0:01:50]} Re8 {[%emt 0:03:11]} 37. f4 {[%emt 0:04:31]} c4 {[%emt 0:04:04]} 38. h5 {[%emt 0:00:33]} Ne7 {[%emt 0:00:24]} 39. fxe5 {[%emt 0:01:59]} Nxf5 {[%emt 0:00:26]} 40. Qxf5 {[%emt 0:00:00]} Qc7 {[%emt 0:00:00]} 41. Rf1 {[%emt 0:00:59]} Bc5+ {[%emt 0:00:41]} 42. Kh1 {[%emt 0:01:24]} Bd7 {[%emt 0:03:48]} 43. e6 {[%emt 0:07:19]} fxe6 {[%emt 0:00:31]} 44. Bxg7+ {[%emt 0:00:16]} Kxg7 {[%emt 0:00:30]} 45. Qg6+ {[%emt 0:00:21]} Kh8 {[%emt 0:00:26]} 46. Rf7 {[%emt 0:00:18]} exd5 {[%emt 0:00:27]} 47. Rh7# {[%emt 0:00:11]} 1-0

[Event "FIDE WCCC G12 2018"]
[Site "Santiago de Compostela"]
[Date "2018.11.12"]
[Round "8"]
[White "Cornileau, Juliette"]
[Black "Zhai, Pinran"]
[Result "1-0"]
[ECO "B52"]
[WhiteElo "1740"]
[BlackElo "1558"]
[Annotator "NA RC"]
[PlyCount "165"]
[EventDate "2018.11.04"]
[EventType "swiss"]
[EventCountry "ESP"]
[SourceTitle "playchess.com"]
[Source "ChessBase"]
[SourceQuality "1"]
[TimeControl "40/5400+30:1800+30"]

1. e4 {[%emt 0:00:00]} c5 {[%emt 0:00:00]} 2. Nf3 {[%emt 0:00:00]} d6 {[%emt 0:00:01]} 3. Bb5+ {[%emt 0:00:00]} Bd7 {[%emt 0:00:29]} 4. Bxd7+ {[%emt 0:00:00]} Qxd7 {[%emt 0:00:59]} 5. O-O {[%emt 0:00:20]} Nc6 {[%emt 0:00:55]} 6. c3 {[%emt 0:00:38]} Nf6 {[%emt 0:03:18]} 7. Qe2 {[%emt 0:00:37]} e6 {[%emt 0:01:41]} 8. d4 {[%emt 0:00:52]} Be7 {[%emt 0:01:38]} 9. Rd1 {[%emt 0:03:32]} cxd4 {[%emt 0:00:41]} 10. cxd4 {[%emt 0:00:08]} O-O {[%emt 0:00:10]} 11. Nc3 {[%emt 0:00:43]} Rad8 {[%emt 0:14:40]} 12. h3 {[%emt 0:04:26]} a6 {[%emt 0:01:09]} 13. Be3 {[%emt 0:02:06]} b5 {[%emt 0:04:52]} 14. e5 {[%emt 0:06:51]} Nd5 {[%emt 0:00:50]} 15. Nxd5 {[%emt 0:03:56]} exd5 {[%emt 0:00:27]} 16. Rac1 {[%emt 0:03:54]} dxe5 {[%emt 0:02:25]} 17. Nxe5 {[%emt 0:09:35]} Nxe5 {[%emt 0:00:32]} 18. dxe5 {[%emt 0:00:06]} Qe6 {[%emt 0:00:15]} 19. Bd4 {[%emt 0:04:11]} Rc8 {[%emt 0:05:27]} 20. Qd2 {[%emt 0:09:34]} h6 {[%emt 0:01:34]} 21. b3 {[%emt 0:15:43]} Rcd8 {[%emt 0:11:53]} 22. Rc7 {[%emt 0:05:20]} Rc8 {[%emt 0:02:01]} 23. Rcc1 {[%emt 0:02:30]} Qf5 {[%emt 0:04:55]} 24. Qb2 {[%emt 0:12:57]} Bg5 {[%emt 0:02:08]} 25. Rxc8 {[%emt 0:00:40]} Rxc8 {[%emt 0:00:01]} 26. Rf1 {[%emt 0:04:19]} Qe4 {[%emt 0:01:45]} 27. Qa1 {[%emt 0:06:40]} Rc6 {[%emt 0:02:35]} 28. Re1 {[%emt 0:02:34]} Qf5 {[%emt 0:00:07]} 29. Rf1 {[%emt 0:01:35]} Bf4 {[%emt 0:00:42]} 30. Re1 {[%emt 0:00:31]} Bd2 {[%emt 0:01:21]} 31. Rf1 {[%emt 0:00:26]} Qd3 {[%emt 0:00:19]} 32. Bb2 {[%emt 0:00:37]} Qf5 {[%emt 0:02:10]} 33. Bd4 {[%emt 0:00:09]} Qe4 {[%emt 0:00:39]} 34. Bb2 {[%emt 0:00:11]} Rg6 {[%emt 0:00:27]} 35. g3 {[%emt 0:00:55]} Qh4 {[%emt 0:01:06]} 36. Kh2 {[%emt 0:00:15]} Bf4 {[%emt 0:01:48]} 37. Rg1 {[%emt 0:00:49]} Qg5 {[%emt 0:00:20]} 38. Qd1 {[%emt 0:00:48]} Bxe5 {[%emt 0:00:29]} 39. Bxe5 {[%emt 0:00:30]} Qxe5 {[%emt 0:00:01]} 40. Re1 {[%emt 0:00:00]} Qd6 {[%emt 0:00:00]} 41. Qd3 {[%emt 0:05:36]} Qc5 {[%emt 0:01:03]} 42. Kg2 {[%emt 0:01:20]} Qc6 {[%emt 0:01:17]} 43. Kh2 {[%emt 0:00:56]} Rf6 {[%emt 0:00:35]} 44. Kg1 {[%emt 0:00:28]} Rd6 {[%emt 0:00:56]} 45. Kh2 {[%emt 0:01:23]} Rd8 {[%emt 0:00:33]} 46. Kg1 {[%emt 0:01:17]} a5 {[%emt 0:00:12]} 47. Re7 {[%emt 0:01:57]} b4 {[%emt 0:04:23]} 48. Qd4 {[%emt 0:01:53]} Rd7 {[%emt 0:03:38]} 49. Re2 {[%emt 0:03:37]} Qc3 {[%emt 0:00:27]} 50. Qg4 {[%emt 0:01:49]} Rd8 {[%emt 0:00:32]} 51. Qf5 {[%emt 0:01:12]} Qc7 {[%emt 0:00:24]} 52. Qd3 {[%emt 0:02:54]} d4 {[%emt 0:00:06]} 53. Qd1 {[%emt 0:01:48]} Qc6 {[%emt 0:01:37]} 54. Rd2 {[%emt 0:01:35]} Qd6 {[%emt 0:00:15]} 55. Rd3 {[%emt 0:00:35]} Qd5 {[%emt 0:00:51]} 56. Qe2 {[%emt 0:01:38]} Qf5 {[%emt 0:01:19]} 57. Kh2 {[%emt 0:02:27]} Qd5 {[%emt 0:00:11]} 58. Kg1 {[%emt 0:02:51]} Qf5 {[%emt 0:00:35]} 59. Kh2 {[%emt 0:00:43]} Qb5 {[%emt 0:00:55]} 60. Qd2 {[%emt 0:01:06]} Qc5 {[%emt 0:00:26]} 61. Kg1 {[%emt 0:01:15]} Rd6 {[%emt 0:01:16]} 62. Kh2 {[%emt 0:02:05]} Qe5 {[%emt 0:00:35]} 63. Kg1 {[%emt 0:00:54]} h5 {[%emt 0:01:00]} 64. h4 {[%emt 0:00:43]} g6 {[%emt 0:00:17]} 65. Kf1 {[%emt 0:00:49]} Kg7 {[%emt 0:00:09]} 66. Qd1 {[%emt 0:00:30]} Qe4 {[%emt 0:00:43]} 67. Kg1 {[%emt 0:00:10]} Kh7 {[%emt 0:00:33]} 68. Kh2 {[%emt 0:00:56]} Rf6 {[%emt 0:00:20]} 69. Kg1 {[%emt 0:00:20]} Rd6 {[%emt 0:00:50]} 70. Kh2 {[%emt 0:00:23]} Qf5 {[%emt 0:00:07]} 71. Kg1 {[%emt 0:00:29]} Qe4 {[%emt 0:00:13]} 72. Kh2 {[%emt 0:00:23]} Kg7 {[%emt 0:00:19]} 73. Kg1 {[%emt 0:00:27]} Kf6 {[%emt 0:00:09]} 74. Qd2 {[%emt 0:00:47]} Rd5 {[%emt 0:00:15]} 75. Qd1 {[%emt 0:00:41]} Ke6 {[%emt 0:00:14]} 76. Qd2 {[%emt 0:00:32]} Rd6 {[%emt 0:00:09]} 77. Qd1 {[%emt 0:00:30]} Kd5 {[%emt 0:00:24]} 78. Qc2 {[%emt 0:00:32]} Rc6 {[%emt 0:00:07]} 79. Qd2 {[%emt 0:00:24]} Rc3 {[%emt 0:00:43]} 80. Qg5+ {[%emt 0:00:31]} Ke6 {[%emt 0:00:03]} 81. Rd1 {[%emt 0:00:33]} d3 {[%emt 0:00:26]} 82. Qd8 {[%emt 0:00:22]} Qd5 {[%emt 0:01:58]} 83. Re1+ 1-0

[Event "FIDE WCCC G12 2018"]
[Site "Santiago de Compostela"]
[Date "2018.11.12"]
[Round "8"]
[White "Francisco Guecamburu, Candela Be"]
[Black "Mahi Amit Doshi"]
[Result "1/2-1/2"]
[ECO "B13"]
[WhiteElo "1725"]
[BlackElo "1515"]
[Annotator "NA RC"]
[PlyCount "60"]
[EventDate "2018.11.04"]
[EventType "swiss"]
[EventCountry "ESP"]
[SourceTitle "playchess.com"]
[Source "ChessBase"]
[SourceQuality "1"]
[TimeControl "40/5400+30:1800+30"]

1. e4 {[%emt 0:00:00]} c6 {[%emt 0:00:00]} 2. d4 {[%emt 0:00:00]} d5 {[%emt 0:00:00]} 3. exd5 {[%emt 0:00:00]} cxd5 {[%emt 0:00:00]} 4. Bf4 {[%emt 0:00:09]} Nc6 {[%emt 0:00:12]} 5. c3 {[%emt 0:00:10]} Bf5 {[%emt 0:01:19]} 6. Nd2 {[%emt 0:00:44]} Nf6 {[%emt 0:01:34]} 7. Ngf3 {[%emt 0:00:37]} e6 {[%emt 0:00:39]} 8. Nh4 {[%emt 0:03:16]} Bg4 {[%emt 0:01:05]} 9. Qb3 {[%emt 0:01:02]} Qd7 {[%emt 0:03:25]} 10. Nhf3 {[%emt 0:01:12]} a6 {[%emt 0:03:30]} 11. Bd3 {[%emt 0:01:57]} Be7 {[%emt 0:07:46]} 12. O-O {[%emt 0:06:43]} O-O {[%emt 0:00:28]} 13. Rfe1 {[%emt 0:01:41]} Nh5 {[%emt 0:01:16]} 14. Be5 {[%emt 0:07:43]} Bd6 {[%emt 0:02:55]} 15. Bxd6 {[%emt 0:16:45]} Qxd6 {[%emt 0:00:04]} 16. Ne5 {[%emt 0:00:22]} Nxe5 {[%emt 0:04:11]} 17. dxe5 {[%emt 0:00:17]} Qe7 {[%emt 0:01:28]} 18. f3 {[%emt 0:03:00]} Nf4 {[%emt 0:05:47]} 19. Qc2 {[%emt 0:09:42]} Qc5+ {[%emt 0:01:33]} 20. Kf1 {[%emt 0:01:36]} Nxd3 {[%emt 0:02:07]} 21. Qxd3 {[%emt 0:00:04]} Bf5 {[%emt 0:00:05]} 22. Qe2 {[%emt 0:01:32]} Rac8 {[%emt 0:02:56]} 23. Rac1 {[%emt 0:08:42]} Qa5 {[%emt 0:05:39]} 24. a3 {[%emt 0:01:57]} Qa4 {[%emt 0:01:28]} 25. Red1 {[%emt 0:05:09]} Bc2 {[%emt 0:03:10]} 26. Re1 {[%emt 0:03:41]} d4 {[%emt 0:15:42]} 27. Ne4 {[%emt 0:08:37]} Bxe4 {[%emt 0:02:43]} 28. Qxe4 {[%emt 0:00:31]} Qb5+ {[%emt 0:01:20]} 29. Qe2 {[%emt 0:00:25]} Qxe2+ {[%emt 0:02:11]} 30. Kxe2 {[%emt 0:00:32]} Rc6 1/2-1/2

[Event "FIDE WCCC G12 2018"]
[Site "Santiago de Compostela"]
[Date "2018.11.12"]
[Round "8"]
[White "Boramanikar Tanisha S"]
[Black "Nadzamova, Viktoria"]
[Result "1-0"]
[ECO "B21"]
[WhiteElo "1716"]
[BlackElo "1923"]
[Annotator "NA RC"]
[PlyCount "85"]
[EventDate "2018.11.04"]
[EventType "swiss"]
[EventCountry "ESP"]
[SourceTitle "playchess.com"]
[Source "ChessBase"]
[SourceQuality "1"]
[TimeControl "40/5400+30:1800+30"]

{[%evp 8,84,13,-8,-5,2,0,-29,-14,32767,47,21,42,25,34,8,80,45,64,47,49,34,43,9,37,27,40,33,95,14,119,127,136,127,119,32767,177,140,290,251,235,207,374,255,356,32767,275,308,314,305,359,256,339,368,442,447,444,366,500,397,408,485,577,456,32767,678,637,32767,773,415,738,531,1195,32767,32767,880,1526,1733,5473]} 1. e4 {[%emt 0:00:00]} c5 {[%emt 0:00:00]} 2. d4 {[%emt 0:00:00]} cxd4 {[%emt 0:00:00]} 3. c3 {[%emt 0:00:00]} Nf6 {[%emt 0:00:00]} 4. e5 {[%emt 0:00:27]} Nd5 {[%emt 0:00:13]} 5. Bc4 {[%emt 0:00:12]} Qc7 {[%emt 0:00:10]} 6. Qe2 {[%emt 0:00:21]} Nb6 {[%emt 0:00:12]} 7. Bd3 {[%emt 0:00:17]} Nc6 {[%emt 0:00:21]} 8. Nf3 {[%emt 0:00:46]} Nb4 {[%emt 0:02:02]} (8... g6 $11) 9. O-O {[%emt 0:05:29] B22: Sicilian: 2 c3} Nxd3 {[%emt 0:00:09]} 10. Qxd3 {[%emt 0:00:05] LiveBook: 4 Games} d6 {[%emt 0:02:41]} 11. Bf4 {[%emt 0:03:35]} d5 $146 {[%emt 0:04:21]} (11... e6 $11) ({Predecessor:} 11... Qc4 12. Qd2 Bg4 13. Nxd4 dxe5 14. Bxe5 f6 15. Na3 Qc5 16. Bg3 e5 {0-1 (40) Tomescu,V (2390)-Hracek,Z (2635) Pardubice 1995}) 12. Rc1 {[%emt 0:05:58]} e6 {[%emt 0:02:03]} 13. cxd4 {[%emt 0:01:40]} Qd8 {[%emt 0:03:43]} 14. Nc3 {[%emt 0:02:28]} a6 {[%emt 0:01:00]} 15. a4 {[%emt 0:01:40]} Be7 {[%emt 0:04:07]} 16. b3 {[%emt 0:03:58]} O-O {[%emt 0:02:55]} 17. Ne2 {[%emt 0:02:33]} Bd7 {[%emt 0:02:13]} (17... Nd7 $11) 18. Bd2 {[%emt 0:04:09]} (18. h4 $16) 18... Rc8 {[%emt 0:01:55]} (18... Nc8 $11) 19. Ba5 {[%emt 0:02:23]} Rxc1+ {[%emt 0:05:30]} 20. Rxc1 {[%emt 0:00:10]} Bc6 {[%emt 0:01:40]} 21. h3 {[%emt 0:08:14]} h6 {[%emt 0:17:33]} 22. Rc2 {[%emt 0:02:00]} f6 $2 {[%emt 0:06:23]} (22... Re8 $16 {is a better defense.} 23. Nf4 Qc7) 23. Rc1 {[%emt 0:04:10]} Be8 {[%emt 0:11:50]} 24. Qc3 {[%emt 0:03:51]} Bc6 $2 {[%emt 0:04:17]} (24... Ba3 25. exf6 Bxc1) 25. Qc2 {[%emt 0:03:13]} Rf7 {[%emt 0:03:49]} (25... f5 $142 26. Nf4 Kf7) 26. Nf4 {[%emt 0:01:10]} fxe5 {[%emt 0:06:34]} 27. Nxe6 {[%emt 0:00:56]} Qd6 {[%emt 0:02:48]} 28. Nxe5 {[%emt 0:03:38]} ({Weaker is} 28. Bxb6 e4 $16) 28... Rf6 {[%emt 0:00:23]} 29. Nc5 {[%emt 0:01:05]} ({Resist} 29. Nxc6 Qxc6 30. Qxc6 bxc6 $18) ({Weaker is} 29. Bxb6 Qxe6 30. Bc5 Bd8 $16) 29... Nc8 {[%emt 0:01:00] [#]} 30. Nxa6 $1 {[%emt 0:01:07]} Bf8 {[%emt 0:06:24]} 31. Nxc6 {[%emt 0:03:25]} bxc6 {[%emt 0:00:56]} 32. Bb4 {[%emt 0:00:40]} Qe6 {[%emt 0:00:34]} (32... Qf4 $142 33. Bxf8 Rxf8) 33. Bxf8 {[%emt 0:00:54]} Kxf8 {[%emt 0:00:08]} 34. Nc5 {[%emt 0:00:48]} Qd6 {[%emt 0:00:33]} 35. Qe2 {[%emt 0:00:43]} Ne7 {[%emt 0:00:28]} 36. Re1 {[%emt 0:01:00]} Rf7 {[%emt 0:01:13]} 37. Qe6 {[%emt 0:01:48]} Qf4 {[%emt 0:00:45]} (37... Qxe6 $142 38. Nxe6+ Ke8) 38. Qe3 {[%emt 0:00:11]} Qf5 {[%emt 0:00:14]} (38... Qxe3 $142 39. fxe3 Ke8) 39. a5 {[%emt 0:00:54]} Qc2 {[%emt 0:00:39]} 40. Qe2 {[%emt 0:00:00]} Qc3 {[%emt 0:00:00]} 41. a6 {[%emt 0:01:55]} Qa5 {[%emt 0:01:01]} 42. Nb7 {[%emt 0:00:42]} Qb6 $18 {[%emt 0:00:22]} 43. Nd6 {[%emt 0:00:21]} 1-0

[Event "FIDE WCCC G12 2018"]
[Site "Santiago de Compostela"]
[Date "2018.11.12"]
[Round "8"]
[White "Wang, Ellen"]
[Black "Gulieva, Karina"]
[Result "1-0"]
[ECO "B00"]
[WhiteElo "1711"]
[BlackElo "1475"]
[Annotator "NA RC"]
[PlyCount "187"]
[EventDate "2018.11.04"]
[EventType "swiss"]
[EventCountry "ESP"]
[SourceTitle "playchess.com"]
[Source "ChessBase"]
[SourceQuality "1"]
[TimeControl "40/5400+30:1800+30"]

1. e4 {[%emt 0:00:00]} g6 {[%emt 0:00:00]} 2. d4 {[%emt 0:00:00]} d6 {[%emt 0:00:00]} 3. Nc3 {[%emt 0:00:00]} Bg7 {[%emt 0:00:00]} 4. Be3 {[%emt 0:00:00]} Nf6 {[%emt 0:00:07]} 5. f3 {[%emt 0:00:01]} a6 {[%emt 0:00:40]} 6. Qd2 {[%emt 0:00:16]} O-O {[%emt 0:00:28]} 7. Bh6 {[%emt 0:00:29]} e5 {[%emt 0:00:40]} 8. d5 {[%emt 0:01:24]} Nbd7 {[%emt 0:03:20]} 9. O-O-O {[%emt 0:01:23]} b5 {[%emt 0:03:23]} 10. h4 Nb6 {[%emt 0:03:03]} 11. h5 {[%emt 0:04:37]} Qe7 {[%emt 0:05:53]} 12. Bxg7 {[%emt 0:03:20]} Kxg7 {[%emt 0:00:08]} 13. hxg6 {[%emt 0:05:58]} fxg6 {[%emt 0:00:08]} 14. Bd3 {[%emt 0:01:40]} Kg8 {[%emt 0:08:01]} 15. Nh3 {[%emt 0:03:25]} Bxh3 {[%emt 0:00:25]} 16. Rxh3 {[%emt 0:00:17]} b4 {[%emt 0:06:53]} 17. Ne2 {[%emt 0:03:22]} a5 {[%emt 0:02:22]} 18. Rdh1 {[%emt 0:01:54]} Nbd7 {[%emt 0:05:47]} 19. Qg5 {[%emt 0:02:22]} Rf7 {[%emt 0:04:21]} 20. Ng3 {[%emt 0:06:21]} Nxd5 {[%emt 0:09:29]} 21. Qxe7 {[%emt 0:03:50]} Nxe7 {[%emt 0:00:17]} 22. Bc4 {[%emt 0:00:10]} d5 {[%emt 0:00:13]} 23. exd5 {[%emt 0:00:30]} Nb6 {[%emt 0:00:33]} 24. b3 {[%emt 0:03:35]} Nexd5 {[%emt 0:02:10]} 25. Bxd5 {[%emt 0:04:14]} Nxd5 {[%emt 0:00:33]} 26. Ne4 {[%emt 0:00:14]} h5 {[%emt 0:06:46]} 27. g4 {[%emt 0:05:03]} Nf4 {[%emt 0:00:16]} 28. R3h2 {[%emt 0:00:20]} Rd8 {[%emt 0:06:01]} 29. gxh5 {[%emt 0:05:33]} gxh5 {[%emt 0:01:18]} 30. Ng3 {[%emt 0:01:01]} Re8 {[%emt 0:09:00]} 31. Nxh5 {[%emt 0:02:30]} Nxh5 {[%emt 0:00:37]} 32. Rxh5 {[%emt 0:00:07]} Rg7 {[%emt 0:01:34]} 33. Re1 {[%emt 0:03:40]} Rge7 {[%emt 0:00:46]} 34. Kd2 {[%emt 0:03:04]} Kf7 {[%emt 0:01:52]} 35. Rh6 {[%emt 0:03:02]} Rd7+ {[%emt 0:01:37]} 36. Ke3 {[%emt 0:01:07]} Re6 {[%emt 0:01:42]} 37. Rh5 {[%emt 0:02:51]} Ke7 {[%emt 0:02:23]} 38. Rg1 {[%emt 0:02:00]} Kd6 {[%emt 0:02:07]} 39. Rgg5 {[%emt 0:02:37]} Rde7 {[%emt 0:01:07]} 40. Ke4 {[%emt 0:00:00]} Re8 {[%emt 0:00:00]} 41. Rf5 {[%emt 0:03:31]} c6 {[%emt 0:05:22]} 42. Rhg5 {[%emt 0:01:44]} R8e7 {[%emt 0:07:45]} 43. Rf8 {[%emt 0:06:42]} Re8 {[%emt 0:00:37]} 44. Rf7 {[%emt 0:05:34]} R8e7 {[%emt 0:00:59]} 45. Rxe7 {[%emt 0:01:31]} Rxe7 {[%emt 0:00:09]} 46. Rf5 {[%emt 0:01:30]} Re8 {[%emt 0:02:03]} 47. Rf7 {[%emt 0:01:39]} Kc5 {[%emt 0:01:10]} 48. Rd7 {[%emt 0:02:16]} Re6 {[%emt 0:01:26]} 49. Rd3 {[%emt 0:01:30]} Re8 {[%emt 0:02:37]} 50. Kf5 {[%emt 0:02:36]} Re7 {[%emt 0:00:48]} 51. Kf6 {[%emt 0:03:08]} Re8 {[%emt 0:00:14]} 52. Kf7 {[%emt 0:00:56]} Rh8 {[%emt 0:01:08]} 53. Ke6 {[%emt 0:01:05]} Re8+ {[%emt 0:00:15]} 54. Kf5 {[%emt 0:00:25]} Re7 {[%emt 0:00:23]} 55. c3 {[%emt 0:00:20]} Re8 {[%emt 0:00:50]} 56. cxb4+ {[%emt 0:00:26]} axb4 {[%emt 0:00:13]} 57. Re3 {[%emt 0:01:06]} Kd5 {[%emt 0:00:15]} 58. Rd3+ {[%emt 0:00:44]} Kc5 {[%emt 0:00:11]} 59. Ke4 {[%emt 0:00:07]} Kb6 {[%emt 0:02:14]} 60. Rd6 {[%emt 0:00:45]} Kc5 {[%emt 0:00:24]} 61. Rf6 {[%emt 0:00:50]} Re7 {[%emt 0:00:37]} 62. Rf5 {[%emt 0:00:56]} Kd6 {[%emt 0:00:13]} 63. Rg5 {[%emt 0:00:41]} Re8 {[%emt 0:00:31]} 64. Rg7 {[%emt 0:00:33]} Kc5 {[%emt 0:00:38]} 65. Ra7 {[%emt 0:00:38]} Kb6 {[%emt 0:00:16]} 66. Rh7 {[%emt 0:01:25]} Kc5 {[%emt 0:00:08]} 67. Rh4 {[%emt 0:00:19]} Kd6 {[%emt 0:00:26]} 68. Kd3 {[%emt 0:00:35]} Rb8 {[%emt 0:00:29]} 69. Kc4 {[%emt 0:00:34]} Rb5 {[%emt 0:01:30]} 70. Rh6+ {[%emt 0:00:00]} Kd7 {[%emt 0:00:20]} 71. Rh7+ {[%emt 0:00:07]} Kd6 {[%emt 0:00:12]} 72. Ra7 {[%emt 0:00:11]} Rb6 {[%emt 0:00:38]} 73. Ra4 {[%emt 0:00:20]} c5 {[%emt 0:00:12]} 74. Ra7 {[%emt 0:01:09]} Rc6 {[%emt 0:00:45]} 75. Rh7 {[%emt 0:01:34]} Ke6 {[%emt 0:01:07]} 76. Rh2 {[%emt 0:01:01]} Kf5 {[%emt 0:00:38]} 77. Kd5 {[%emt 0:02:12]} Rc8 {[%emt 0:00:16]} 78. Rh7 {[%emt 0:01:27]} Ra8 {[%emt 0:00:49]} 79. Rf7+ {[%emt 0:05:50]} Kg6 {[%emt 0:00:12]} 80. Re7 {[%emt 0:00:43]} Rxa2 {[%emt 0:00:11]} 81. Kxc5 {[%emt 0:01:31]} Kf6 {[%emt 0:00:34]} 82. Re8 {[%emt 0:00:19]} Re2 {[%emt 0:00:10]} 83. Kxb4 {[%emt 0:00:44]} Kf7 {[%emt 0:00:06]} 84. Rc8 {[%emt 0:00:30]} Re3 {[%emt 0:00:09]} 85. Rc3 {[%emt 0:00:07]} Re1 {[%emt 0:00:06]} 86. Kc5 {[%emt 0:00:44]} Rd1 {[%emt 0:00:08]} 87. b4 {[%emt 0:00:32]} Rd8 {[%emt 0:00:07]} 88. b5 {[%emt 0:00:51]} Rc8+ {[%emt 0:00:11]} 89. Kb4 {[%emt 0:00:06]} Rxc3 {[%emt 0:00:51]} 90. Kxc3 {[%emt 0:00:05]} Ke6 {[%emt 0:00:03]} 91. Kd3 {[%emt 0:00:12]} Kd5 {[%emt 0:00:04]} 92. Ke3 {[%emt 0:00:21]} Kc5 {[%emt 0:00:03]} 93. Ke4 {[%emt 0:00:04]} Kxb5 {[%emt 0:00:05]} 94. Kxe5 {[%emt 0:00:40]} 1-0